bitfinex/quotes_BTCUSD_20220304
["timestamp","ask_amount","ask_price","bid_price","bid_amount"]
[1646382907158,0.367309,40920.0,40915.0,0.001]
[1646382907359,0.01452761,40917.0,40913.0,0.001]
[1646382907558,0.01571512,40915.0,40913.0,0.001]
[1646382907756,0.50452536,40914.0,40913.0,0.001]
[1646382908001,0.679529,40914.0,40913.0,0.001]
[1646382908198,0.379529,40914.0,40913.0,0.001]
[1646382908401,0.679529,40914.0,40913.0,0.001]
[1646382908599,0.379529,40914.0,40913.0,0.001]
[1646382908800,0.10606408,40916.0,40913.0,0.001]
[1646382909002,0.06520883,40914.0,40913.0,0.001]
[1646382909306,0.06520883,40914.0,40913.0,0.15770722]
[1646382909500,0.05,40928.0,40905.0,0.061141]
[1646382909501,0.0449,40923.0,40905.0,0.061141]
[1646382909700,0.0449,40923.0,40893.0,0.604006]
[1646382909701,0.17072858,40924.0,40906.0,0.3]
[1646382909899,0.3,40923.0,40899.0,0.122271]
[1646382910101,0.3,40923.0,40895.0,0.05]
[1646382910102,0.25,40921.0,40895.0,0.05]
[1646382910303,0.4,40918.0,40901.0,0.06415223]
[1646382910505,0.3,40917.0,40909.0,0.20105999]
[1646382910703,0.01222,40923.0,40909.0,0.20105999]
[1646382910704,0.2345491,40919.0,40909.0,0.20105999]
[1646382910900,0.55,40927.0,40909.0,0.20105999]
[1646382910901,0.31114273,40927.0,40909.0,0.20105999]
[1646382911101,0.3,40927.0,40909.0,0.25105999]
[1646382911302,0.05,40934.0,40913.0,1.21964771]
[1646382911503,0.6089,40942.0,40917.0,0.5614]
[1646382911504,0.4589,40942.0,40917.0,0.5614]
[1646382911749,0.97995107,40954.0,40940.0,0.18078617]
[1646382911750,0.27767113,40941.0,40940.0,0.18078617]
[1646382911951,0.27767113,40941.0,40918.0,1.3449]
[1646382911952,0.2986459,40937.0,40936.0,0.10706693]
[1646382912549,0.05,40954.0,40940.0,0.061094]
[1646382912752,0.4857,40963.0,40941.0,0.3449]
[1646382912753,0.01221,40962.0,40941.0,0.3449]
[1646382912954,0.2016586,40946.0,40941.0,0.0449]
[1646382913151,0.643,40960.0,40941.0,0.0449]
[1646382913152,0.01221,40959.0,40941.0,0.0449]
[1646382913352,0.16221,40959.0,40941.0,0.0449]
[1646382913552,0.01221,40959.0,40942.0,1.0]
[1646382913754,0.05,40965.0,40946.0,0.06107]
[1646382913755,0.3622,40965.0,40946.0,0.06107]
[1646382913952,0.35,40965.0,40945.0,0.05]
[1646382914150,0.35,40965.0,40952.0,0.21602944]
[1646382914151,0.16703477,40960.0,40952.0,0.21602944]
[1646382914353,0.35,40965.0,40953.0,0.0449]
[1646382914354,0.3,40965.0,40953.0,0.0449]
[1646382914654,0.3,40971.0,40953.0,0.0449]
[1646382914851,0.0122,40970.0,40956.0,0.061072]
[1646382915053,0.0122,40970.0,40956.0,0.105972]
[1646382915253,0.35,40974.0,40969.0,0.21710486]
[1646382915254,0.0122,40973.0,40969.0,0.21710486]
[1646382915529,0.27498009,40976.0,40970.0,0.0449]
[1646382915912,0.27498009,40976.0,40970.0,0.11653]
[1646382916113,0.27498009,40976.0,40970.0,0.177578]
[1646382916414,0.21458009,40976.0,40971.0,0.30906484]
[1646382916614,0.21458009,40976.0,40972.0,0.10061199]
[1646382916813,0.0122,40992.0,40973.0,1.4]
[1646382917014,0.25,41003.0,40973.0,1.4]
[1646382917015,0.01,41009.0,40979.0,1.0]
[1646382917220,0.013249,41009.0,40992.0,0.19923124]
[1646382917413,0.013249,41009.0,40993.0,0.35293112]
[1646382917613,0.01,41009.0,40993.0,0.0449]
[1646382917811,0.01,41009.0,41002.0,0.23388262]
[1646382918013,0.45004839,41001.0,40999.0,0.0449]
[1646382918612,0.45004839,41001.0,40999.0,0.0949]
[1646382919113,0.45004839,41001.0,40999.0,0.0449]
[1646382920350,0.45004839,41001.0,41000.0,0.060997]
[1646382920854,0.05,41018.0,41001.0,1.45]
[1646382921055,0.001,41019.0,41006.0,0.060979]
[1646382921251,0.2493717,41018.0,41007.0,0.0449]
[1646382921452,0.15794657,41019.0,41007.0,0.0449]
[1646382921650,0.15794657,41019.0,41008.0,0.12009859]
[1646382921850,0.15794657,41019.0,41009.0,0.0449]
[1646382922451,0.18015839,41018.0,41009.0,0.0449]
[1646382922653,0.18015839,41018.0,41009.0,0.35293112]
[1646382922851,0.18015839,41018.0,41009.0,0.0449]
[1646382923608,0.18015839,41018.0,41002.0,0.07167757]
[1646382923811,0.48901351,41018.0,41004.0,0.05]
[1646382924010,0.18015839,41018.0,41007.0,0.21381784]
[1646382924208,0.18015839,41018.0,41008.0,0.0449]
[1646382925207,0.21828301,41012.0,41008.0,0.0449]
[1646382925408,0.30892562,41019.0,41008.0,0.0449]
[1646382925609,0.001,41019.0,41008.0,0.0449]
[1646382926209,0.0009,41019.0,41008.0,0.0449]
[1646382926408,0.0009,41019.0,41009.0,0.19952671]
[1646382926611,0.1509,41019.0,41010.0,0.0449]
[1646382927253,0.0009,41019.0,41010.0,0.0449]
[1646382927450,0.18824566,41016.0,41010.0,0.0449]
[1646382928048,0.16311041,41011.0,41010.0,0.0449]
[1646382928648,0.26180539,41011.0,41010.0,0.0449]
[1646382928850,0.30792562,41018.0,41010.0,0.0449]
[1646382929049,0.0009,41019.0,41010.0,0.0449]
[1646382929651,0.0009,41019.0,41018.0,0.20416953]
[1646382930055,0.5661877,41017.0,41013.0,0.0449]
[1646382930899,0.21681446,41001.0,41000.0,0.021935]
[1646382931101,0.67474008,41001.0,40984.0,0.807531]
[1646382931299,0.67474008,41001.0,40977.0,1.04069397]
[1646382931300,0.30792562,41000.0,40982.0,0.0449]
[1646382931497,0.15,40999.0,40981.0,0.061029]
[1646382931698,0.15,40994.0,40981.0,0.061029]
[1646382931902,0.25507534,40988.0,40981.0,0.061029]
[1646382932099,0.30792562,40987.0,40978.0,0.122054]
[1646382932301,0.30792562,40987.0,40976.0,0.001]
[1646382932502,0.15,40986.0,40976.0,0.001]
[1646382933001,0.30792562,40987.0,40976.0,0.001]
[1646382933002,0.15,40977.0,40976.0,0.001]
[1646382933202,0.30792562,40977.0,40976.0,0.001]
[1646382933402,0.45792562,40977.0,40976.0,0.001]
[1646382933602,0.65792562,40977.0,40971.0,0.001]
[1646382933801,0.15,40972.0,40971.0,0.001]
[1646382934261,0.003,40975.0,40971.0,0.001]
[1646382934457,0.15,40972.0,40971.0,0.001]
[1646382934656,0.15,40973.0,40971.0,0.001]
[1646382934859,0.003,40975.0,40971.0,0.001]
[1646382935158,0.003,40975.0,40966.0,0.064051]
[1646382935159,0.003,40975.0,40968.0,0.061043]
[1646382935359,0.003,40975.0,40967.0,0.05]
[1646382936157,0.003,40975.0,40966.0,0.186108]
[1646382936158,0.15,40974.0,40966.0,0.003]
[1646382936358,0.15,40971.0,40966.0,0.003]
[1646382936758,0.003,40975.0,40966.0,0.003]
[1646382937357,0.15,40982.0,40966.0,0.003]
[1646382937561,0.0122,40983.0,40971.0,0.07805553]
[1646382937758,0.0122,40983.0,40973.0,0.02415]
[1646382938017,0.0122,40983.0,40975.0,0.02415]
[1646382938215,0.15,40987.0,40975.0,0.328309]
[1646382938613,0.15,40987.0,40975.0,0.02415]
[1646382938913,0.15,40987.0,40975.0,0.304159]
[1646382939112,0.15,40991.0,40971.0,0.304159]
[1646382939314,0.0122,40992.0,40975.0,0.061033]
[1646382939514,0.0122,40992.0,40974.0,0.061033]
[1646382939515,0.0122,40992.0,40988.0,0.15510444]
[1646382939715,0.0122,40992.0,40989.0,0.02415]
[1646382939914,0.15,41000.0,40988.0,0.15510444]
[1646382940114,0.01218,41005.0,40988.0,0.15510444]
[1646382940115,0.16218,41005.0,40991.0,0.06513786]
[1646382940315,0.01218,41005.0,40992.0,0.304159]
[1646382940520,0.4636,41012.0,40992.0,0.304159]
[1646382940521,0.6136,41012.0,40993.0,0.0449]
[1646382940718,0.15,41012.0,40996.0,0.01139592]
[1646382940924,0.145,41012.0,41004.0,0.21900399]
[1646382941118,0.145,41012.0,41004.0,0.06905]
[1646382941320,0.145,41012.0,41004.0,0.0949]
[1646382941517,0.145,41012.0,41005.0,0.060996]
[1646382941745,0.145,41012.0,41005.0,0.085146]
[1646382941746,0.135,41012.0,41005.0,0.085146]
[1646382941950,0.135,41012.0,41006.0,0.02415]
[1646382942147,0.135,41012.0,41006.0,0.05]
[1646382942350,0.135,41012.0,41005.0,0.060996]
[1646382942548,0.135,41012.0,41008.0,0.07044514]
[1646382942756,0.135,41012.0,41005.0,0.060996]
[1646382942950,0.1924422,41009.0,41005.0,0.060996]
[1646382943152,0.24444809,41013.0,41005.0,0.060996]
[1646382943552,0.5661877,41017.0,41005.0,0.060996]
[1646382943751,0.5661877,41017.0,41005.0,0.17628536]
[1646382943950,0.5661877,41017.0,41005.0,0.121985]
[1646382944150,0.15997104,41012.0,41006.0,0.05]
[1646382944352,0.15997104,41012.0,41005.0,0.060996]
[1646382944550,0.24775571,41010.0,41005.0,0.060996]
[1646382944754,0.24775571,41010.0,40994.0,0.227891]
[1646382944755,0.13455418,41006.0,40994.0,0.227891]
[1646382944955,0.13434867,40995.0,40983.0,0.243963]
[1646382945155,0.13434867,40995.0,40971.0,0.05532633]
[1646382945156,0.304159,40994.0,40979.0,0.061026]
[1646382945352,0.304159,40994.0,40972.0,0.06251274]
[1646382945353,0.304159,40994.0,40984.0,0.061031]
[1646382945610,0.45082187,40986.0,40984.0,0.061031]
[1646382946011,0.0999,40995.0,40984.0,0.061031]
[1646382946214,0.316339,40996.0,40984.0,0.061031]
[1646382946215,0.01218,40996.0,40984.0,0.085181]
[1646382946410,0.19656575,40996.0,40984.0,0.085181]
[1646382946609,0.01218,40996.0,40984.0,0.085181]
[1646382947010,0.19863854,40988.0,40984.0,0.061031]
[1646382947210,0.23299384,40992.0,40984.0,0.061031]
[1646382947211,0.304159,40991.0,40984.0,0.061031]
[1646382947409,0.23299384,40992.0,40984.0,0.061031]
[1646382947810,0.13434867,40995.0,40984.0,0.061031]
[1646382948010,0.13434867,41000.0,40989.0,0.061019]
[1646382949265,0.13434867,41000.0,40997.0,0.26840036]
[1646382949463,0.01218,41002.0,40997.0,0.26840036]
[1646382949666,0.15669732,41006.0,40997.0,0.31840036]
[1646382949862,0.15669732,41006.0,40997.0,0.20739236]
[1646382950262,0.15669732,41006.0,40997.0,0.25739236]
[1646382950566,0.21830118,41007.0,41000.0,0.061003]
[1646382951564,0.13434867,41006.0,41000.0,0.061003]
[1646382951760,0.32961402,41006.0,41000.0,0.061003]
[1646382951984,0.21830118,41007.0,41000.0,0.061003]
[1646382952461,0.13434867,41010.0,41000.0,0.061003]
[1646382952861,0.20200591,41008.0,41000.0,0.061003]
[1646382953304,0.39633983,41008.0,41000.0,0.061003]
[1646382953703,0.16100099,40994.0,40989.0,0.7343]
[1646382954002,0.16100099,40994.0,40993.0,0.166915]
[1646382954203,0.15753458,40988.0,40983.0,0.20434339]
[1646382954402,0.3,40993.0,40987.0,0.05636491]
[1646382954603,0.16100099,40994.0,40985.0,0.122036]
[1646382955006,0.16100099,40994.0,40986.0,0.061016]
[1646382955404,0.16100099,40994.0,40991.0,0.21011844]
[1646382955606,0.16100099,40994.0,40986.0,0.061016]
[1646382955905,0.16100099,40994.0,40988.0,0.06160473]
[1646382956107,0.16100099,40994.0,40986.0,0.061016]
[1646382956108,0.16100099,40994.0,40986.0,0.361016]
[1646382956308,0.13434867,40992.0,40981.0,0.122046]
[1646382956759,0.21255996,40991.0,40983.0,0.17427479]
[1646382956962,0.13434867,40992.0,40983.0,0.17427479]
[1646382957160,0.2212315,40991.0,40987.0,0.06546532]
[1646382957362,0.13434867,40992.0,40983.0,0.17427479]
[1646382958261,0.20477825,40991.0,40983.0,0.17427479]
[1646382958462,0.13434867,40992.0,40987.0,0.07493994]
[1646382958663,0.13434867,40992.0,40983.0,0.17427479]
[1646382958962,0.16100099,40994.0,40990.0,0.20596096]
[1646382959963,0.16100099,40994.0,40990.0,0.27598313]
[1646382960504,0.16100099,40994.0,40991.0,0.02415]
[1646382960702,0.16100099,40994.0,40990.0,0.27598313]
[1646382960703,0.16100099,40994.0,40993.0,0.02415]
[1646382960904,0.51058,41009.0,40995.0,0.02415]
[1646382961105,0.4984,41009.0,41005.0,0.25809929]
[1646382961305,0.16856183,41013.0,41005.0,0.19562891]
[1646382961902,0.16856183,41013.0,41001.0,0.0449]
[1646382961903,0.27380378,41009.0,41001.0,0.0449]
[1646382962402,0.19534779,41016.0,41001.0,0.105901]
[1646382963002,0.19534779,41016.0,41001.0,0.130051]
[1646382963304,0.21720562,41015.0,41007.0,0.18138803]
[1646382963506,0.21720562,41015.0,41008.0,0.060992]
[1646382963703,0.13434867,41011.0,41008.0,0.060992]
[1646382963906,0.21945296,41010.0,41008.0,0.060992]
[1646382964103,0.13434867,41011.0,41008.0,0.060992]
[1646382964369,0.70053637,41017.0,41008.0,0.060992]
[1646382964770,0.70053637,41017.0,41010.0,0.121966]
[1646382965168,0.09009178,41017.0,41015.0,0.17324061]
[1646382965370,0.01218,41026.0,41015.0,0.17324061]
[1646382965371,0.13434867,41030.0,41021.0,0.1577491]
[1646382965571,0.13434867,41030.0,41022.0,0.3449]
[1646382965967,0.13434867,41030.0,41023.0,0.3]
[1646382966169,0.13434867,41030.0,41024.0,0.0449]
[1646382966370,0.13434867,41030.0,41025.0,0.0449]
[1646382966571,0.13434867,41034.0,41025.0,0.0449]
[1646382966767,0.23530956,41037.0,41025.0,0.0449]
[1646382966969,0.13434867,41031.0,41025.0,0.0449]
[1646382967168,0.22402175,41027.0,41025.0,0.0449]
[1646382967568,0.20130671,41027.0,41025.0,0.0449]
[1646382968204,0.20130671,41027.0,41018.0,0.0449]
[1646382968205,0.11721009,41022.0,41018.0,0.0449]
[1646382968403,0.13434867,41020.0,41018.0,0.0449]
[1646382968602,0.30060523,41020.0,41018.0,0.0449]
[1646382968803,0.13434867,41020.0,41018.0,0.0449]
[1646382969002,0.11721009,41022.0,41018.0,0.105878]
[1646382969603,0.11721009,41022.0,41019.0,0.05632436]
[1646382970603,0.11721009,41022.0,41018.0,0.27413472]
[1646382970804,0.11721009,41022.0,41020.0,0.7343]
[1646382971006,0.4832,41036.0,41021.0,2.48980868]
[1646382971204,0.4552,41040.0,41027.0,0.23495333]
[1646382971403,0.13434867,41043.0,41028.0,0.0449]
[1646382971603,0.13434867,41043.0,41029.0,0.166802]
[1646382971858,0.17601702,41042.0,41031.0,0.07405338]
[1646382972055,0.30515412,41041.0,41031.0,0.07405338]
[1646382972255,0.33352835,41042.0,41029.0,0.47195612]
[1646382972455,0.17601702,41042.0,41029.0,1.20625612]
[1646382972658,0.5332,41045.0,41030.0,0.07484255]
[1646382972855,0.05,41045.0,41031.0,0.02415]
[1646382973055,0.05,41045.0,41031.0,0.0449]
[1646382973258,0.05,41045.0,41035.0,0.06466565]
[1646382973457,0.13434867,41042.0,41035.0,0.06466565]
[1646382973657,0.13434867,41042.0,41032.0,0.30515412]
[1646382973957,0.13434867,41042.0,41033.0,0.0449]
[1646382974157,0.19542087,41040.0,41033.0,0.0449]
[1646382974360,0.13434867,41042.0,41035.0,0.060949]
[1646382974560,0.6457742,41067.0,41036.0,1.45]
[1646382974760,1.08630877,41072.0,41036.0,1.45]
[1646382974763,0.29641597,41080.0,41050.0,0.15]
[1646382974961,0.25,41087.0,41075.0,0.07221592]
[1646382975263,0.18074868,41083.0,41076.0,0.35005412]
[1646382975518,0.25,41079.0,41076.0,0.0449]
[1646382975715,0.25,41079.0,41077.0,0.121785]
[1646382975716,0.30515412,41078.0,41077.0,0.121785]
[1646382975913,0.25,41079.0,41077.0,0.121785]
[1646382976116,0.30515412,41078.0,41077.0,0.121785]
[1646382976313,0.30515412,41078.0,41063.0,0.18268]
[1646382976314,0.22224533,41072.0,41071.0,0.0449]
[1646382976513,0.25,41079.0,41069.0,0.0449]
[1646382976713,0.20386792,41074.0,41067.0,0.0449]
[1646382977015,0.25,41079.0,41071.0,0.0609]
[1646382977412,0.28807335,41074.0,41071.0,0.0609]
[1646382977712,0.25,41079.0,41071.0,0.0609]
[1646382977916,0.45864675,41079.0,41071.0,0.0609]
[1646382978115,0.20864675,41079.0,41071.0,0.0609]
[1646382978315,0.20864675,41079.0,41073.0,0.1218]
[1646382978517,0.01,41099.0,41073.0,0.1218]
[1646382978518,0.2,41077.0,41074.0,0.0449]
[1646382978717,0.40086937,41075.0,41074.0,0.0449]
[1646382978919,0.40086937,41075.0,41069.0,0.0449]
[1646382978920,0.25,41072.0,41069.0,0.0449]
[1646382979117,0.25,41072.0,41058.0,0.36187799]
[1646382979118,0.45,41063.0,41058.0,0.11827999]
[1646382979555,0.17958574,41062.0,41058.0,0.11827999]
[1646382979753,0.24290444,41061.0,41058.0,0.11827999]
[1646382980152,0.01217,41068.0,41058.0,0.11827999]
[1646382980153,0.25,41067.0,41058.0,0.11827999]
[1646382980755,0.55454276,41067.0,41059.0,0.121839]
[1646382980954,0.21573293,41063.0,41059.0,0.121839]
[1646382981357,0.46573293,41063.0,41059.0,0.121839]
[1646382981558,0.2,41062.0,41059.0,0.121839]
[1646382982279,0.2,41062.0,41047.0,0.07866621]
[1646382982280,0.25,41054.0,41047.0,0.01217]
[1646382982458,0.25,41054.0,41050.0,0.121865]
[1646382983123,0.45398474,41056.0,41050.0,0.121865]
[1646382983317,0.25,41056.0,41050.0,0.121865]
[1646382983517,0.28154086,41054.0,41050.0,0.121865]
[1646382983719,0.30347172,41064.0,41058.0,0.08677795]
[1646382984321,0.34075489,41060.0,41058.0,0.08677795]
[1646382984519,0.30492846,41059.0,41058.0,0.08677795]
[1646382985318,0.07246129,41073.0,41058.0,0.08677795]
[1646382985319,0.01283535,41077.0,41058.0,0.08677795]
[1646382985522,1.326,41088.0,41058.0,0.08677795]
[1646382985523,0.182774,41096.0,41075.0,0.15]
[1646382985822,0.01,41099.0,41077.0,0.16005071]
[1646382986021,0.01,41099.0,41077.0,0.15]
[1646382986221,0.01,41099.0,41079.0,0.15]
[1646382986418,0.01,41099.0,41080.0,0.36198846]
[1646382986619,0.01,41099.0,41085.0,0.15]
[1646382986870,0.01,41099.0,41089.0,0.060876]
[1646382987066,0.05383508,41097.0,41090.0,0.30492846]
[1646382987266,0.01,41099.0,41089.0,0.060876]
[1646382987471,0.01,41099.0,41090.0,0.34982846]
[1646382987866,0.01,41099.0,41090.0,0.0449]
[1646382988265,0.17860608,41097.0,41090.0,0.0449]
[1646382988466,0.01,41099.0,41090.0,0.0449]
[1646382988666,0.28508004,41097.0,41090.0,0.227492]
[1646382988865,0.01,41099.0,41090.0,0.227492]
[1646382989067,0.01,41099.0,41091.0,0.3002915]
[1646382989264,0.01,41099.0,41092.0,0.1949]
[1646382990503,0.01,41099.0,41093.0,0.12172]
[1646382990707,0.01,41099.0,41094.0,0.4060455]
[1646382991105,0.05,41115.0,41098.0,0.01500364]
[1646382991304,0.22131918,41115.0,41101.0,0.121677]
[1646382991508,0.01216,41120.0,41106.0,0.060845]
[1646382991705,0.01,41129.0,41105.0,0.15]
[1646382991706,0.01116,41127.0,41112.0,1.45]
[1646382991906,0.01,41129.0,41116.0,0.15]
[1646382992105,0.07036776,41126.0,41117.0,0.0449]
[1646382992306,0.07036776,41126.0,41114.0,0.12165]
[1646382992506,0.07036776,41126.0,41101.0,0.3124315]
[1646382992507,0.17087625,41111.0,41101.0,0.3124315]
[1646382992809,0.17087625,41111.0,41097.0,0.4694]
[1646382992810,0.17087625,41111.0,41102.0,0.0449]
[1646382993004,0.17087625,41111.0,41103.0,0.0449]
[1646382993304,0.2082854,41120.0,41098.0,0.06086]
[1646382993504,0.05,41121.0,41098.0,0.06086]
[1646382993505,0.21816842,41103.0,41099.0,0.3451915]
[1646382993704,0.01216,41119.0,41099.0,0.0449]
[1646382994365,0.01216,41119.0,41087.0,0.060877]
[1646382994366,0.367309,41099.0,41087.0,0.060877]
[1646382994566,0.367309,41099.0,41077.0,0.121772]
[1646382994567,0.18724942,41085.0,41077.0,0.121772]
[1646382994766,0.18724942,41085.0,41061.0,0.2499]
[1646382994767,0.3002915,41084.0,41061.0,0.2499]
[1646382994966,0.3002915,41084.0,41059.0,0.2317]
[1646382995266,0.47415,41096.0,41059.0,0.2317]
[1646382995267,0.05,41092.0,41069.0,0.15]
[1646382995470,0.07305363,41081.0,41070.0,0.3002915]
[1646382995766,0.05,41091.0,41066.0,0.15]
[1646382995965,0.0449,41094.0,41066.0,0.15]
[1646382996165,0.0949,41094.0,41069.0,0.060902]
[1646382996366,0.0949,41094.0,41074.0,0.06089]
[1646382996567,0.0449,41094.0,41075.0,0.3002915]
[1646382996766,0.23226347,41089.0,41075.0,0.3002915]
[1646382996967,0.23226347,41089.0,41071.0,0.3002915]
[1646382997166,0.16776285,41078.0,41074.0,0.12178]
[1646382997367,0.16776285,41078.0,41068.0,0.3]
[1646382997567,0.16776285,41078.0,41070.0,0.060899]
[1646382997765,0.16776285,41078.0,41064.0,0.15]
[1646382998016,0.2657649,41077.0,41064.0,0.15]
[1646382998215,0.16776285,41078.0,41064.0,0.15]
[1646382998417,0.3,41085.0,41067.0,0.0609]
[1646382998817,0.3,41085.0,41065.0,0.0609]
[1646382998818,0.40707,41085.0,41065.0,0.0609]
[1646382999118,0.40707,41085.0,41060.0,0.001]
[1646382999119,0.46010454,41083.0,41060.0,0.001]
[1646382999316,0.774379,41082.0,41060.0,0.001]
[1646382999517,0.01822,41074.0,41060.0,0.001]
[1646382999716,0.0937,41076.0,41061.0,0.15]
[1646382999915,0.05,41082.0,41061.0,0.15]
[1646382999916,0.0449,41081.0,41061.0,0.15]
[1646383000116,0.3249,41081.0,41061.0,0.15]
[1646383000417,0.28057816,41075.0,41061.0,0.15]
[1646383000619,0.17735256,41073.0,41060.0,0.151]
[1646383000816,0.17735256,41073.0,41060.0,0.001]
[1646383001015,0.47735256,41073.0,41060.0,0.001]
[1646383001217,0.17735256,41073.0,41060.0,0.001]
[1646383001416,0.17735256,41073.0,41058.0,0.20860295]
[1646383001417,0.25277778,41068.0,41058.0,0.06760295]
[1646383001618,0.47735256,41073.0,41058.0,0.06760295]
[1646383001869,0.0749,41081.0,41058.0,0.06760295]
[1646383001870,0.3,41077.0,41058.0,0.06760295]
[1646383002063,0.31217,41080.0,41058.0,0.06760295]
[1646383002265,0.05,41077.0,41058.0,0.06760295]
[1646383002464,0.31217,41076.0,41058.0,0.02760295]
[1646383002665,0.25491836,41066.0,41058.0,0.02760295]
[1646383002866,0.31217,41073.0,41058.0,0.02760295]
[1646383003367,0.36217,41073.0,41058.0,0.02760295]
[1646383003568,0.21811845,41068.0,41058.0,0.02760295]
[1646383003766,0.3,41067.0,41058.0,0.02760295]
[1646383003966,0.20538599,41064.0,41058.0,0.02760295]
[1646383004165,0.3,41063.0,41058.0,0.02760295]
[1646383004564,0.20538599,41064.0,41058.0,0.02760295]
[1646383004766,0.3,41063.0,41058.0,0.02760295]
[1646383005602,0.20538599,41064.0,41058.0,0.02760295]
[1646383005806,0.19681092,41061.0,41058.0,0.02660295]
[1646383006006,0.19681092,41061.0,41051.0,0.01]
[1646383006007,0.712209,41060.0,41051.0,0.01]
[1646383006204,0.06065993,41058.0,41051.0,0.01]
[1646383006404,0.21387864,41052.0,41051.0,0.01]
[1646383006803,0.44100258,41052.0,41051.0,0.01]
[1646383007003,0.47058684,41052.0,41051.0,0.01]
[1646383007207,0.31217,41057.0,41051.0,0.01]
[1646383007406,0.14801845,41069.0,41051.0,0.01]
[1646383007407,0.35707,41065.0,41051.0,0.01]
[1646383007606,0.35,41065.0,41051.0,0.01]
[1646383007804,0.01217,41064.0,41051.0,0.01]
[1646383008205,0.26490338,41061.0,41051.0,0.01]
[1646383008403,0.26490338,41061.0,41051.0,0.31]
[1646383009258,0.19656095,41060.0,41051.0,0.01]
[1646383009761,0.15638317,41053.0,41051.0,0.01]
[1646383009964,0.34632452,41052.0,41051.0,0.01]
[1646383010560,0.64606416,41052.0,41051.0,0.01]
[1646383010859,0.64606416,41052.0,41047.0,0.001]
[1646383010860,0.64918964,41052.0,41047.0,0.001]
[1646383011061,0.06217,41051.0,41047.0,0.001]
[1646383011261,0.01217,41051.0,41047.0,0.001]
[1646383011461,0.29973964,41052.0,41047.0,0.001]
[1646383011462,0.2306365,41052.0,41047.0,0.001]
[1646383011862,0.05,41053.0,41047.0,0.001]
[1646383012162,0.0449,41066.0,41047.0,0.001]
[1646383012358,0.0449,41066.0,41064.0,0.0999]
[1646383012359,0.01217,41065.0,41064.0,0.0999]
[1646383012560,0.01217,41065.0,41048.0,0.3]
[1646383012561,0.3875512,41065.0,41048.0,0.3]
[1646383012760,0.2144238,41061.0,41048.0,0.3]
[1646383013022,0.18025329,41065.0,41064.0,0.0999]
[1646383013825,0.20974713,41074.0,41066.0,0.35649336]
[1646383014022,0.379479,41073.0,41066.0,0.35649336]
[1646383014222,0.01217,41073.0,41072.0,0.0999]
[1646383014422,0.367309,41073.0,41072.0,0.0999]
[1646383014822,0.06092852,41080.0,41072.0,0.0999]
[1646383014823,0.01217,41080.0,41072.0,0.0999]
[1646383015023,0.2079247,41075.0,41072.0,0.0999]
[1646383015222,0.2079247,41075.0,41066.0,0.35649336]
[1646383015421,0.21206116,41077.0,41073.0,0.0999]
[1646383015626,0.5407595,41074.0,41073.0,0.0999]
[1646383015823,0.367309,41074.0,41073.0,0.0999]
[1646383016426,0.367309,41077.0,41073.0,0.0999]
[1646383016625,0.367309,41082.0,41066.0,0.35649336]
[1646383016855,0.21180918,41075.0,41066.0,0.35649336]
[1646383017057,0.2842672,41075.0,41066.0,0.35649336]
[1646383017258,0.57911818,41075.0,41074.0,0.0999]
[1646383017858,0.86544316,41075.0,41074.0,0.0999]
[1646383018056,1.21544316,41075.0,41074.0,0.0999]
[1646383018256,0.91544316,41075.0,41074.0,0.0999]
[1646383019058,0.9828101,41075.0,41074.0,0.0999]
[1646383019858,0.9828101,41075.0,41074.0,0.0949]
[1646383020061,0.91544316,41075.0,41074.0,0.0949]
[1646383020259,0.91544316,41075.0,41066.0,0.35649336]
[1646383020514,0.20002079,41067.0,41066.0,0.35649336]
[1646383020709,0.56732979,41067.0,41066.0,0.35649336]
[1646383021110,0.72545701,41067.0,41066.0,0.35649336]
[1646383021311,0.45,41066.0,41056.0,0.15]
[1646383021510,0.46465289,41067.0,41056.0,0.15]
[1646383021909,0.16883963,41060.0,41056.0,0.15]
[1646383022111,0.2646321,41067.0,41056.0,0.15]
[1646383022309,0.05398407,41064.0,41056.0,0.15]
[1646383022510,0.3146321,41067.0,41056.0,0.15]
[1646383022910,0.05,41067.0,41056.0,0.15]
[1646383023110,0.20645369,41066.0,41056.0,0.15]
[1646383023309,0.05,41077.0,41056.0,0.15]
[1646383023510,0.05,41074.0,41057.0,0.3]
[1646383023712,0.05637255,41072.0,41056.0,0.15]
[1646383023914,0.28508256,41073.0,41056.0,0.15]
[1646383024366,0.05,41077.0,41060.0,0.15]
[1646383024556,0.05,41077.0,41055.0,0.121835]
[1646383024557,0.05,41077.0,41066.0,0.0945]
[1646383024756,0.20918649,41080.0,41066.0,0.0449]
[1646383024957,0.06318667,41077.0,41066.0,0.0449]
[1646383025256,0.20473614,41077.0,41076.0,0.0945]
[1646383025458,0.05,41085.0,41072.0,0.0449]
[1646383025459,0.31759098,41085.0,41072.0,0.0449]
[1646383025656,0.31759098,41085.0,41079.0,0.0945]
[1646383025857,0.26759098,41085.0,41076.0,0.0449]
[1646383026256,0.26759098,41085.0,41083.0,0.0945]
[1646383026257,0.19508833,41084.0,41083.0,0.0945]
[1646383026558,0.1876953,41084.0,41083.0,0.0945]
[1646383026858,1.59103704,41089.0,41083.0,0.0945]
[1646383027061,0.01216,41094.0,41083.0,0.0945]
[1646383027256,0.01216,41094.0,41078.0,0.15]
[1646383027257,0.01216,41094.0,41081.0,0.0449]
[1646383027458,0.01216,41098.0,41092.0,0.0945]
[1646383027658,0.01,41099.0,41092.0,0.0945]
[1646383027856,0.45877054,41094.0,41092.0,0.0945]
[1646383028109,0.20322458,41094.0,41084.0,0.3]
[1646383028313,0.20322458,41094.0,41083.0,0.15]
[1646383028607,0.20322458,41094.0,41081.0,0.0449]